bitfinex-derivatives/quotes_ETHF0:USTF0_20260120
["timestamp","ask_amount","ask_price","bid_price","bid_amount"]
[1768929240860,0.1657,3020.0,3018.7,3.59925876]
[1768929241056,7.29214955,3020.2,3018.7,3.59925876]
[1768929242268,1.77900416,3020.6,3018.7,3.59925876]
[1768929242465,0.16568,3020.3,3018.7,3.59925876]
[1768929242862,0.16569,3020.2,3018.7,3.59925876]
[1768929247572,0.16569,3020.1,3018.7,3.59925876]
[1768929248160,0.16569,3020.1,3018.8,3.59512958]
[1768929248973,1.31869853,3020.1,3019.1,3.59512958]
[1768929251276,1.15315575,3020.0,3019.1,3.59512958]
[1768929251470,1.15315575,3019.8,3019.1,3.59512958]
[1768929251675,1.15315575,3019.8,3018.7,4.75241451]
[1768929252073,1.15315575,3019.8,3018.8,3.59512958]
[1768929252376,1.15315575,3019.8,3018.9,1.15315575]
[1768929252676,0.16569,3020.1,3018.9,1.15315575]
[1768929252677,1.15315575,3020.0,3018.9,1.15315575]
[1768929253278,1.15315575,3020.0,3018.9,4.74828533]
[1768929253467,0.16569,3020.1,3018.7,0.00412918]
[1768929253468,0.16569,3020.1,3019.1,1.15315575]
[1768929253777,0.16566,3020.7,3019.6,3.59512958]
[1768929253976,1.15315575,3020.6,3019.6,3.59512958]
[1768929255071,0.16566,3020.7,3019.6,3.59512958]
[1768929255788,0.16566,3020.7,3018.9,3.42658032]
[1768929256279,0.16567,3020.6,3018.9,3.42658032]
[1768929258078,1.14157068,3020.5,3018.9,3.42658032]
[1768929258269,0.16567,3020.5,3018.9,3.42658032]
[1768929261480,0.97592903,3020.4,3018.9,3.42658032]
[1768929261675,0.16567,3020.5,3018.9,3.42658032]
[1768929265482,1.27325415,3020.4,3018.9,3.42658032]
[1768929265785,0.16567,3020.5,3018.9,3.42658032]
[1768929265979,3.05172793,3020.4,3018.9,3.42658032]
[1768929266184,1.27325306,3020.3,3018.9,3.42658032]
[1768929266385,1.77847487,3020.4,3018.9,3.42658032]
[1768929266386,1.27325306,3020.2,3018.9,3.42658032]
[1768929266582,1.77847487,3020.4,3018.9,3.42658032]
[1768929266781,1.27320842,3020.3,3018.9,3.42658032]
[1768929266984,1.27320842,3020.2,3018.9,3.42658032]
[1768929267180,1.77847487,3020.4,3018.9,3.42658032]
[1768929267381,1.27326552,3020.3,3018.9,3.42658032]
[1768929267584,1.27326552,3020.2,3018.9,3.42658032]
[1768929267884,1.77847487,3020.4,3018.9,3.42658032]
[1768929268085,1.27326494,3020.3,3018.9,3.42658032]
[1768929268389,1.27326494,3020.2,3018.9,3.42658032]
[1768929268590,1.27326494,3020.1,3018.9,3.42658032]
[1768929268885,3.42834889,3020.3,3018.9,3.42658032]
[1768929269190,1.27319749,3020.2,3018.9,3.42658032]
[1768929269486,1.27319749,3020.1,3018.9,3.42658032]
[1768929269679,3.42834889,3020.3,3018.9,3.42658032]
[1768929269875,1.27315188,3020.2,3018.9,3.42658032]
[1768929270084,0.16568,3020.4,3018.9,3.42658032]
[1768929270288,1.27317186,3020.3,3018.9,3.42658032]
[1768929270489,1.27317186,3020.2,3018.9,3.42658032]
[1768929270688,2.02268,3020.4,3018.9,3.42658032]
[1768929270990,1.27316898,3020.3,3018.9,3.42658032]
[1768929271189,1.27316898,3020.2,3018.9,3.42658032]
[1768929271379,2.02268,3020.4,3018.9,3.42658032]
[1768929271583,1.27324418,3020.3,3018.9,3.42658032]
[1768929271786,1.27324418,3020.2,3018.9,3.42658032]
[1768929271985,2.02268,3020.4,3018.9,3.42658032]
[1768929272188,1.27324453,3020.3,3018.9,3.42658032]
[1768929272494,1.27324453,3020.2,3018.9,3.42658032]
[1768929272692,0.29723897,3020.1,3018.9,3.42658032]
[1768929272992,1.857,3020.3,3018.9,3.42658032]
[1768929273294,1.27334254,3020.2,3018.9,3.42658032]
[1768929273493,0.29726417,3020.1,3018.9,3.42658032]
[1768929273792,2.02269,3020.2,3018.9,3.42658032]
[1768929273992,0.29726137,3020.1,3018.9,3.42658032]
[1768929274191,2.02269,3020.2,3018.9,3.42658032]
[1768929274493,0.29725587,3020.1,3018.9,3.42658032]
[1768929274693,2.02269,3020.2,3018.9,3.42658032]
[1768929274894,1.15331729,3019.8,3018.9,3.42658032]
[1768929275096,2.02269,3020.2,3018.9,3.42658032]
[1768929275396,1.15331729,3019.9,3018.9,3.42658032]
[1768929275688,1.15331729,3020.1,3019.0,3.42658032]
[1768929277594,1.15331729,3020.1,3019.1,1.15331729]
[1768929278300,1.15331729,3019.8,3018.7,3.4307095]
[1768929278490,1.15331729,3019.8,3018.7,4.58402679]
[1768929278987,3.17601111,3020.2,3018.7,3.4307095]
[1768929279292,1.27213516,3020.1,3018.7,3.4307095]
[1768929279491,3.17601111,3020.2,3018.7,3.4307095]
[1768929279695,1.27206547,3020.1,3018.7,3.4307095]
[1768929279993,3.17601111,3020.2,3018.7,3.4307095]
[1768929280191,1.27205644,3020.1,3018.7,3.4307095]
[1768929280392,3.17601111,3020.2,3018.7,3.4307095]
[1768929280590,1.27199085,3020.1,3018.7,3.4307095]
[1768929280789,3.17601111,3020.2,3018.7,3.4307095]
[1768929280984,1.15332111,3019.9,3018.7,0.00412918]
[1768929281193,1.27168746,3019.8,3018.7,0.00412918]
[1768929281396,1.15332111,3019.9,3018.7,0.00412918]
[1768929281598,1.27169124,3019.8,3018.7,0.00412918]
[1768929281793,1.15332111,3019.9,3018.7,0.00412918]
[1768929282097,0.16572,3019.7,3018.7,0.00412918]
[1768929282598,0.16572,3019.7,3018.8,3.42658032]
[1768929284188,3.315,3020.2,3018.8,3.42658032]
[1768929284189,0.16569,3020.2,3018.8,3.42658032]
[1768929284389,3.12812463,3020.1,3018.8,3.42658032]
[1768929284594,1.857,3020.1,3018.8,3.42658032]
[1768929284900,0.16569,3020.2,3018.8,3.42658032]
[1768929285100,1.27111908,3020.1,3018.8,3.42658032]
[1768929285289,0.16569,3020.2,3019.3,3.42691727]
[1768929285596,3.315,3020.6,3019.3,3.42691727]
[1768929285793,0.29709803,3020.5,3019.3,3.42691727]
[1768929285993,3.315,3020.6,3019.3,3.42691727]
[1768929286301,0.29710526,3020.5,3019.3,3.42691727]
[1768929286499,0.16566,3020.7,3019.3,3.42691727]
[1768929286691,1.27071066,3020.6,3019.3,3.42691727]
[1768929286892,0.2971035,3020.5,3019.3,3.42691727]
[1768929287099,0.16566,3020.7,3019.3,3.42691727]
[1768929287289,1.27076105,3020.6,3019.3,3.42691727]
[1768929287492,0.29711454,3020.5,3019.3,3.42691727]
[1768929287795,0.16566,3020.7,3019.3,3.42691727]
[1768929287995,1.27051634,3020.6,3019.3,3.42691727]
[1768929288295,0.29711448,3020.5,3019.3,3.42691727]
[1768929288499,0.16566,3020.7,3019.3,3.42691727]
[1768929288796,1.2705106,3020.6,3019.3,3.42691727]
[1768929288997,0.29711313,3020.5,3019.3,3.42691727]
[1768929289197,0.16566,3020.7,3019.3,3.42691727]
[1768929289500,1.27049933,3020.6,3019.3,3.42691727]
[1768929289701,0.29711047,3020.5,3019.3,3.42691727]
[1768929289895,1.31898111,3020.7,3019.3,3.42691727]
[1768929290095,3.59094335,3020.3,3018.9,3.42691727]
[1768929291293,1.15332111,3020.5,3018.9,3.42691727]
[1768929291494,1.2705627,3020.4,3018.9,3.42691727]
[1768929291694,0.16568,3020.4,3018.9,3.42691727]
[1768929292701,0.9734735,3020.3,3018.9,3.42691727]
[1768929292999,0.16568,3020.4,3018.9,3.42691727]
[1768929293196,0.97347353,3020.3,3018.9,4.58023838]
[1768929293403,3.75662335,3020.4,3018.9,3.42691727]
[1768929293597,0.97351182,3020.3,3018.9,3.42691727]
[1768929293798,3.75662335,3020.4,3018.9,3.42691727]
[1768929293999,0.97351306,3020.3,3018.9,3.42691727]
[1768929294201,3.75662335,3020.4,3018.9,3.42691727]
[1768929294401,0.97355187,3020.3,3018.9,3.42691727]
[1768929294600,3.75662335,3020.4,3018.9,3.42691727]
[1768929294799,0.97355179,3020.3,3018.9,3.42691727]
[1768929295001,3.75662335,3020.4,3018.9,3.42691727]
[1768929295200,0.97409943,3020.3,3018.9,3.42691727]
[1768929295402,3.75662335,3020.4,3018.9,3.42691727]
[1768929295593,1.27149505,3020.3,3018.9,3.42691727]
[1768929295797,3.59094335,3020.3,3018.9,3.42691727]
[1768929297516,0.16568,3020.4,3018.9,3.42691727]
[1768929297806,1.27387311,3020.3,3018.9,3.42691727]
[1768929298008,0.16568,3020.4,3018.9,3.42691727]
[1768929298203,1.27387216,3020.3,3018.9,3.42691727]
[1768929298502,0.16568,3020.4,3018.9,4.58023838]
[1768929298704,1.27385345,3020.3,3019.0,3.42691727]
[1768929298902,0.16568,3020.4,3019.0,3.42691727]
[1768929299098,1.27384993,3020.3,3019.0,3.42691727]
[1768929299309,0.16568,3020.4,3019.0,3.42691727]
[1768929299612,1.27383755,3020.3,3019.0,3.42691727]
[1768929299800,0.16568,3020.4,3019.0,3.42691727]
[1768929300111,1.27384176,3020.3,3019.0,3.42691727]
[1768929300408,0.16569,3020.2,3019.0,3.42691727]
[1768929300610,0.16569,3020.2,3018.7,0.00412918]
[1768929300804,0.16569,3020.2,3018.7,4.58436756]
[1768929301207,0.16569,3020.2,3018.8,3.42691727]
[1768929302006,1.15332111,3020.2,3018.8,4.20691727]
[1768929302313,0.16571,3019.8,3018.8,0.78]
[1768929303111,0.16571,3019.8,3018.7,0.00412918]
[1768929303814,0.29954678,3019.7,3018.7,0.00412918]
[1768929304013,4.74426446,3019.9,3018.7,0.00412918]
[1768929304213,0.29948614,3019.8,3018.7,0.00412918]
[1768929304416,4.74426446,3019.9,3018.7,0.00412918]
[1768929304712,0.16573,3019.5,3018.7,0.00412918]
[1768929306011,5.44794335,3019.9,3018.7,0.00412918]
[1768929306613,5.61365335,3019.9,3018.7,0.00412918]
[1768929307209,0.16571,3019.8,3018.7,0.00412918]
[1768929308015,3.75665335,3019.8,3018.7,0.00412918]
[1768929308213,0.16572,3019.7,3018.7,0.00412918]
[1768929309512,0.16569,3020.1,3018.8,3.42691727]
[1768929309715,0.16569,3020.1,3019.0,1.15332111]
[1768929310116,0.16569,3020.1,3019.0,4.58023838]
[1768929310310,0.16567,3020.6,3019.3,1.15332111]
[1768929310611,1.27294889,3020.5,3019.3,1.15332111]
[1768929310805,0.16567,3020.6,3019.3,1.15332111]
[1768929311000,1.27297574,3020.5,3019.3,1.15332111]
[1768929311201,0.16567,3020.5,3019.3,1.15332111]
[1768929312410,3.315,3021.4,3019.7,3.42691727]
[1768929312611,3.13086262,3021.3,3019.7,3.42691727]
[1768929312812,1.27386613,3021.2,3019.7,3.42691727]
[1768929313115,1.15332111,3020.7,3019.3,3.42691727]
[1768929313417,4.74426446,3020.7,3019.3,3.42691727]
[1768929313909,3.89039024,3020.6,3019.0,1.15332111]
[1768929314115,0.46513011,3020.5,3019.0,1.15332111]
[1768929314313,0.16568,3020.5,3019.0,1.15332111]
[1768929314818,0.16568,3020.5,3019.1,3.42691727]
[1768929316411,0.16564,3021.1,3019.7,3.60863708]
[1768929316611,1.27423691,3021.0,3019.7,3.60863708]
[1768929316909,1.27423691,3020.9,3019.7,3.60863708]
[1768929317109,0.16564,3021.1,3019.7,3.60863708]
[1768929317306,1.857,3021.2,3019.3,4.76195819]
[1768929317307,0.16565,3020.9,3019.3,4.76195819]
[1768929317512,0.46521447,3020.8,3019.3,3.60863708]
[1768929317816,0.16565,3020.8,3019.3,3.60863708]
[1768929318517,0.16566,3020.7,3019.3,3.60863708]
[1768929319818,1.857,3020.8,3019.3,3.60863708]
[1768929320516,0.16564,3021.1,3019.3,3.60863708]
[1768929321612,0.16561,3021.7,3019.8,3.60863708]
[1768929322422,0.16561,3021.7,3019.9,0.1657]
[1768929322621,0.16561,3021.7,3020.0,3.60863708]
[1768929322825,0.16558,3022.3,3020.3,3.60863708]
[1768929323522,0.16558,3022.3,3020.8,3.60863708]
[1768929323718,5.15971853,3022.9,3020.8,3.60863708]
[1768929323719,3.57271853,3022.9,3020.8,3.60863708]
[1768929323925,0.00295181,3022.3,3020.8,3.60863708]
[1768929325117,0.16558,3022.2,3020.8,3.60863708]
[1768929325322,3.57567034,3022.3,3020.8,3.60863708]
[1768929325520,0.1656,3021.9,3020.1,3.60863708]
[1768929325721,3.57567034,3022.3,3020.1,3.60863708]
[1768929325914,0.16563,3021.3,3020.1,3.60863708]
[1768929326110,0.16564,3021.1,3019.7,3.60863708]
[1768929327922,3.73835853,3021.1,3019.1,3.60863708]
[1768929328416,1.856,3021.8,3019.1,3.60863708]
[1768929328417,3.73836853,3021.0,3019.1,3.60863708]
[1768929329225,3.57271853,3020.8,3019.1,3.60863708]
[1768929329419,3.73837853,3020.8,3018.7,3.61276626]
[1768929329726,3.57271853,3020.6,3018.7,3.61276626]
[1768929329929,3.57271853,3020.5,3018.7,3.61276626]
[1768929330226,3.73838853,3020.5,3018.7,3.61276626]
[1768929330429,3.73839853,3020.3,3018.7,0.00412918]
[1768929330623,3.57271853,3020.1,3018.7,0.00412918]
[1768929330825,3.5756877,3020.1,3018.7,0.00412918]
[1768929331128,3.7413877,3020.1,3018.7,0.00412918]
[1768929331625,5.5973877,3020.1,3018.7,0.00412918]
[1768929333723,0.16866917,3020.1,3018.7,3.61276626]
[1768929334126,0.00296917,3020.1,3018.7,3.61276626]
[1768929334425,0.16566,3020.8,3018.7,3.61276626]
[1768929334825,0.16566,3020.8,3018.7,3.77853626]
[1768929335128,0.16566,3020.8,3019.1,3.60863708]
[1768929335318,0.00424474,3020.8,3019.1,3.60863708]
[1768929336945,0.16567,3020.5,3019.1,3.60863708]
[1768929337228,0.16569,3020.1,3018.7,0.00412918]
[1768929338534,0.1657,3020.0,3018.7,0.00412918]
[1768929340332,3.57271853,3019.8,3018.7,0.00412918]
[1768929341032,3.57271853,3020.3,3018.7,0.00412918]
[1768929341231,0.16568,3020.5,3018.7,0.00412918]
[1768929341232,0.16568,3020.5,3018.9,3.60863708]
[1768929341834,3.57696327,3020.8,3018.9,3.60863708]
[1768929344033,3.74262327,3020.8,3018.9,3.60863708]
[1768929345029,0.16566,3020.7,3018.9,3.60863708]
[1768929345936,0.16567,3020.5,3018.9,3.60863708]
[1768929346437,3.65875389,3020.4,3018.7,0.00412918]
[1768929346735,0.16568,3020.3,3018.7,0.00412918]
[1768929347329,0.16569,3020.2,3018.7,0.00412918]
[1768929347528,0.16569,3020.1,3018.7,0.00412918]
[1768929350436,0.16566,3020.7,3018.9,3.54922306]
[1768929350831,0.16567,3020.6,3018.9,3.54922306]
[1768929351949,0.16567,3020.5,3018.9,3.54922306]
[1768929353843,3.49731863,3020.8,3019.3,3.54922306]
[1768929355636,3.65874389,3020.5,3018.7,3.55335224]
[1768929355937,0.16569,3020.3,3018.7,3.55335224]
[1768929357042,3.65876389,3020.3,3018.7,3.55335224]
[1768929360540,3.65878389,3019.9,3018.7,0.00412918]
[1768929361145,0.16571,3019.9,3018.7,0.00412918]
[1768929361353,3.65875389,3020.4,3018.7,3.55335224]
[1768929361546,1.25856589,3020.3,3018.7,3.55335224]
[1768929361849,0.16568,3020.4,3019.1,3.54922306]
[1768929363743,0.00424474,3020.8,3019.1,3.54922306]
[1768929363945,1.25940222,3020.7,3019.1,3.54922306]
[1768929364146,1.25940222,3020.6,3019.1,3.54922306]
[1768929364452,0.00424474,3020.8,3019.1,3.54922306]
[1768929364651,1.25916551,3020.7,3019.1,3.54922306]
[1768929364851,0.30491149,3020.6,3019.1,3.54922306]
[1768929365051,0.16989474,3020.8,3019.1,3.54922306]
[1768929365251,1.25921693,3020.7,3019.1,3.54922306]
[1768929365454,1.25921693,3020.6,3019.1,3.54922306]
[1768929365653,0.30496609,3020.5,3019.1,3.54922306]
[1768929365856,3.49307389,3020.7,3019.1,3.54922306]
[1768929366054,4.75255699,3020.6,3019.1,3.54922306]
[1768929366353,4.75309549,3020.5,3018.7,4.14458784]
[1768929366653,0.30497172,3020.4,3018.7,0.00412918]
[1768929367454,4.61389278,3020.3,3018.7,0.00412918]
[1768929367652,0.30497172,3020.2,3018.7,0.00412918]
[1768929368156,3.96373561,3020.2,3018.7,0.00412918]
[1768929368347,0.1657,3019.9,3018.7,0.00412918]
[1768929369752,3.65877389,3019.9,3018.7,0.00412918]
[1768929371056,0.16572,3019.7,3018.7,0.00412918]
[1768929371257,0.16574,3019.3,3018.7,0.00412918]
[1768929371557,0.16574,3019.3,3017.9,0.78]
[1768929371855,3.79821758,3019.2,3017.6,3.54922306]
[1768929372048,0.16576,3018.9,3017.6,3.54922306]
[1768929372453,0.16576,3018.9,3017.6,0.00429352]
[1768929372650,3.49307389,3018.9,3017.6,0.00429352]
[1768929372855,0.16578,3018.5,3017.6,0.00429352]
[1768929373055,0.16869478,3018.5,3017.6,0.00429352]
[1768929374253,3.65886389,3018.4,3017.6,0.00429352]
[1768929374469,3.49307389,3018.3,3016.6,3.54922306]
[1768929375557,0.1658,3018.2,3016.6,3.55184024]
[1768929375747,3.90168633,3018.2,3016.6,3.55184024]
[1768929376562,3.90168633,3018.2,3016.6,0.00261718]
[1768929378361,3.73588633,3018.1,3016.6,0.00261718]
[1768929379670,3.73588633,3017.9,3016.6,0.00261718]
[1768929380063,0.16582,3017.8,3016.6,0.00261718]
[1768929380265,3.90170633,3017.8,3016.6,0.00261718]
[1768929380961,3.73588633,3017.7,3016.6,0.00261718]
[1768929381272,0.16583,3017.6,3016.6,0.00261718]
[1768929381860,0.16585,3017.3,3016.6,0.00261718]
[1768929382058,0.16585,3017.2,3015.6,1.77977266]
[1768929382367,1.77977266,3017.8,3015.4,3.51632065]
[1768929382368,3.90174633,3017.0,3015.4,3.51632065]
[1768929382866,0.16587,3016.9,3015.4,3.51632065]
[1768929383056,0.16587,3016.9,3015.4,3.51962175]
[1768929383873,3.90175633,3016.9,3015.4,3.51962175]
[1768929384169,3.90176633,3016.8,3015.4,0.0033011]
[1768929384368,0.16589,3016.6,3015.4,0.0033011]
[1768929384866,3.90177633,3016.6,3015.4,0.0033011]
[1768929385067,0.1659,3016.4,3015.4,0.0033011]
[1768929385464,8.77274633,3017.0,3015.6,1.77977266]
[1768929385658,0.16586,3017.0,3015.6,5.29609331]
[1768929385855,3.73588633,3017.5,3016.0,5.29609331]
[1768929386065,0.16583,3017.6,3016.4,1.77977266]
[1768929386969,0.16583,3017.6,3016.1,3.51632065]
[1768929387267,3.90172633,3017.5,3015.6,5.29609331]
[1768929387563,3.90172633,3017.5,3015.7,3.51632065]
[1768929388169,3.73588633,3017.9,3016.4,1.77977266]
[1768929388371,3.90169633,3017.9,3016.4,1.77977266]
[1768929388672,3.90170633,3017.8,3016.1,3.51632065]
[1768929391071,0.16583,3017.7,3016.1,3.51632065]
[1768929391272,3.90171633,3017.7,3016.1,3.51632065]
[1768929392468,3.73588633,3017.5,3015.5,0.78]
[1768929392665,3.73588633,3017.5,3015.5,2.55977266]
[1768929392974,3.73588633,3017.5,3015.5,6.07609331]
[1768929393268,0.16587,3017.2,3015.9,5.29609331]
[1768929394972,0.16587,3017.2,3015.9,3.51632065]
[1768929395475,0.16587,3017.2,3015.5,2.55977266]
[1768929395672,3.90175633,3017.2,3015.5,2.55977266]
[1768929395969,3.90177633,3016.9,3015.4,3.51962175]
[1768929396270,0.16589,3016.8,3015.4,0.0033011]
[1768929396667,0.1659,3016.7,3015.4,0.0033011]
[1768929396865,3.73588633,3016.6,3015.4,0.0033011]
[1768929397069,3.90180633,3016.4,3015.4,0.0033011]
[1768929398579,0.16592,3016.4,3015.4,0.0033011]
[1768929401675,5.59388633,3016.9,3015.4,0.0033011]
[1768929401870,5.75977633,3016.9,3015.4,0.0033011]
[1768929402066,3.73588633,3016.8,3015.4,0.0033011]
[1768929402380,0.1659,3016.7,3015.4,0.0033011]
[1768929402966,3.73588633,3016.6,3015.4,0.0033011]
[1768929403173,3.90179633,3016.5,3015.4,0.0033011]
[1768929404179,3.48007543,3016.3,3015.4,0.0033011]
[1768929404383,3.48254976,3016.3,3015.4,0.0033011]
[1768929406383,0.00247433,3016.3,3015.4,0.0033011]
[1768929407269,0.16839433,3016.3,3015.4,0.0033011]
[1768929408372,0.16592,3016.2,3015.4,0.0033011]
[1768929408686,0.16592,3016.2,3015.0,50.0]
[1768929409782,0.16592,3016.2,3015.0,50.00340997]
[1768929410192,0.00247433,3016.3,3015.0,50.00340997]
[1768929412283,3.68501568,3016.3,3015.0,50.00340997]
[1768929412485,3.68254135,3016.0,3015.0,50.00340997]
[1768929412686,0.16594,3015.9,3015.0,50.00340997]
[1768929413690,3.84848135,3015.9,3015.0,50.00340997]
[1768929418500,1.98799721,3016.3,3015.0,42.28568978]
[1768929418695,0.16596,3015.6,3015.0,42.28568978]
[1768929419493,1.98799721,3016.3,3015.0,42.28568978]
[1768929419701,1.24445148,3016.2,3015.0,42.28568978]
[1768929419900,0.16596,3015.6,3015.0,42.28568978]
[1768929420901,0.94125973,3015.5,3015.0,42.28568978]
[1768929421198,0.16592,3016.2,3015.1,3.71405735]
[1768929421495,0.94125108,3016.1,3015.1,3.71405735]
[1768929421695,0.16592,3016.2,3015.1,3.71405735]
[1768929421900,0.00247433,3016.3,3015.1,3.71405735]
[1768929422998,9.23031767,3018.1,3015.1,3.71405735]
[1768929422999,0.16587,3017.2,3015.2,1.78328089]
[1768929423199,6.27665883,3017.6,3015.4,3.71405735]
[1768929423200,3.48485,3017.6,3015.4,3.71405735]
[1768929423399,0.94284919,3017.5,3015.4,3.71405735]
[1768929423591,0.94284919,3017.4,3015.4,3.71405735]
[1768929423800,0.94284919,3017.3,3015.4,3.71405735]
[1768929423995,0.00282545,3017.3,3015.4,3.71405735]
[1768929424300,0.94177496,3017.2,3015.5,2.083]
[1768929424501,0.00282545,3017.3,3015.6,3.71405735]
[1768929424804,0.94200172,3017.2,3015.6,3.71405735]
[1768929425004,0.16868545,3017.3,3015.6,3.71405735]
[1768929425200,0.93866969,3017.2,3015.6,3.71405735]
[1768929425393,0.16868545,3017.3,3015.6,3.71405735]
[1768929425603,0.93872483,3017.2,3015.6,3.71405735]
[1768929425899,0.16868545,3017.3,3015.6,3.71405735]
[1768929426102,0.9387266,3017.2,3015.6,3.71405735]
[1768929426403,0.16868545,3017.3,3015.6,3.71405735]
[1768929426607,0.9385703,3017.2,3015.6,3.71405735]
[1768929426796,0.16868545,3017.3,3015.6,3.71405735]
[1768929427001,0.93857058,3017.2,3015.6,3.71405735]
[1768929427291,0.16868545,3017.3,3015.6,3.71405735]
[1768929427705,0.00282545,3017.3,3015.6,3.71405735]
[1768929427902,0.16588,3017.0,3015.6,3.71405735]
[1768929428405,0.93815204,3016.9,3015.6,3.71405735]
[1768929428601,0.16588,3017.0,3015.6,3.71405735]
[1768929428797,1.10402873,3016.9,3015.6,3.71405735]
[1768929428999,0.16589,3016.9,3015.6,3.71405735]
[1768929429200,0.1659,3016.7,3015.6,3.71405735]
[1768929430300,0.16869545,3017.3,3015.6,3.71405735]
[1768929430501,1.24199659,3017.2,3015.6,3.71405735]
[1768929430701,1.24199659,3017.1,3015.6,3.71405735]
[1768929430899,1.24199659,3017.0,3015.6,3.71405735]
[1768929431104,0.93795969,3016.9,3015.6,3.71405735]
[1768929431403,0.16587,3017.1,3015.6,3.71405735]
[1768929431596,1.241977,3017.0,3015.6,3.71405735]
[1768929431795,0.16587,3017.1,3015.6,3.71405735]
[1768929432893,0.1659,3016.7,3015.6,3.71405735]
[1768929433301,1.858,3017.2,3015.6,3.71405735]
[1768929433506,0.30413249,3017.1,3015.6,3.71405735]
[1768929433803,5.34287,3017.2,3015.6,3.71405735]
[1768929434004,0.30413553,3017.1,3015.6,3.71405735]
[1768929434304,0.16587,3017.2,3015.6,3.71405735]
[1768929439407,0.00282545,3017.3,3015.6,3.88001735]
[1768929440607,0.00282545,3017.3,3015.8,3.5497156]
[1768929445310,0.00282545,3017.3,3015.8,3.7156656]
[1768929445508,0.00282545,3017.3,3015.8,3.5497156]
[1768929446016,0.16589,3016.8,3015.8,3.5497156]
[1768929448613,0.1659,3016.7,3015.8,3.5497156]
[1768929449109,0.1659,3016.6,3015.4,3.5497156]
[1768929449316,0.30429263,3016.5,3015.4,3.5497156]
[1768929449504,0.1659,3016.6,3015.4,3.5497156]
[1768929449706,0.30430768,3016.5,3015.4,3.5497156]
[1768929449912,0.1659,3016.6,3015.4,3.5497156]
[1768929450218,0.30432672,3016.5,3015.4,3.5497156]
[1768929450411,0.1659,3016.6,3015.4,3.5497156]
[1768929450613,0.30428677,3016.5,3015.4,3.5497156]
[1768929450809,0.1659,3016.6,3015.4,3.5497156]
[1768929451006,0.30428677,3016.5,3015.4,3.5497156]
[1768929451315,0.1659,3016.6,3015.4,3.5497156]
[1768929451508,0.47016338,3016.5,3015.4,3.5497156]
[1768929451707,0.16591,3016.5,3015.4,3.5497156]
[1768929455211,0.16591,3016.4,3015.4,3.5497156]
[1768929455412,0.16592,3016.2,3015.4,3.5497156]
[1768929456410,0.16589,3016.9,3015.4,3.5497156]
[1768929456609,1.24238763,3016.8,3015.4,3.5497156]
[1768929456811,0.16589,3016.8,3015.4,3.5497156]
[1768929459920,3.318,3017.1,3015.4,3.5497156]
[1768929461315,0.1659,3016.6,3015.4,3.5497156]
[1768929468430,0.16591,3016.5,3015.4,3.5497156]
[1768929468729,0.16592,3016.2,3015.4,3.5497156]
[1768929469230,1.78350561,3017.1,3015.4,3.5497156]
[1768929469433,0.1659,3016.7,3015.4,3.5497156]
[1768929470430,0.1659,3016.6,3015.4,3.5497156]
[1768929475232,0.3048729,3016.5,3015.4,3.5497156]
[1768929475426,0.1659,3016.6,3015.4,3.5497156]
[1768929475626,0.3048794,3016.5,3015.4,3.5497156]
[1768929475928,0.1659,3016.6,3015.4,3.5497156]
[1768929482343,0.30577666,3016.5,3015.4,3.5497156]
[1768929482538,0.1659,3016.6,3015.4,3.5497156]
[1768929482842,0.30583123,3016.5,3015.4,3.5497156]
[1768929483141,0.1659,3016.6,3015.4,3.5497156]
[1768929483341,0.30592427,3016.5,3015.4,3.5497156]
[1768929483639,0.1659,3016.6,3015.4,3.5497156]
[1768929483842,0.30601544,3016.5,3015.4,3.5497156]
[1768929484044,0.1659,3016.6,3015.4,3.5497156]
[1768929484231,0.00497125,3016.3,3015.4,3.5497156]
[1768929484836,0.00282545,3017.3,3015.6,1.78350561]
[1768929485038,1.25133187,3017.2,3015.7,3.44688691]
[1768929485238,1.41721187,3017.1,3015.7,3.44688691]
[1768929485540,0.16588,3017.1,3015.7,3.44688691]
[1768929486139,0.30600542,3017.0,3015.7,3.44688691]
[1768929486346,0.1659,3016.6,3015.7,3.44688691]
[1768929486831,0.30576958,3016.5,3015.7,3.44688691]
[1768929487032,0.30570292,3016.4,3015.7,3.44688691]
[1768929487237,0.1659,3016.7,3015.7,3.44688691]
[1768929487438,0.00282545,3017.3,3015.7,3.44688691]
[1768929487640,1.24898835,3017.2,3015.7,3.44688691]
[1768929487945,0.94340837,3017.1,3015.8,3.44688691]
[1768929488147,0.16868545,3017.3,3015.8,3.44688691]
[1768929488345,0.94355669,3017.2,3015.8,3.44688691]
[1768929488542,0.16868545,3017.3,3015.8,3.44688691]
[1768929488747,0.94386848,3017.2,3015.8,3.44688691]
[1768929489044,0.16868545,3017.3,3015.8,3.44688691]
[1768929489743,0.16583,3018.0,3016.2,3.44688691]
[1768929490046,0.94383047,3017.9,3016.2,3.44688691]
[1768929490346,0.94383047,3017.8,3016.2,3.44688691]
[1768929490647,0.00362397,3017.8,3016.2,3.44688691]
[1768929491642,0.16586,3017.4,3016.2,3.44688691]
[1768929492855,1.78712958,3017.8,3016.2,3.44688691]
[1768929492856,0.00362397,3017.8,3016.2,3.44688691]
[1768929493150,0.16585,3017.6,3016.2,3.44688691]
[1768929493337,0.16586,3017.5,3016.2,3.44688691]
[1768929493848,0.94118619,3017.4,3016.2,3.44688691]
[1768929494048,0.16587,3017.2,3016.2,3.44688691]
[1768929497548,5.17862397,3017.8,3016.2,3.44688691]
[1768929497846,0.94119747,3017.7,3016.2,3.44688691]
[1768929498051,5.17862397,3017.8,3016.2,3.44688691]
[1768929498052,0.94119747,3017.6,3016.2,3.44688691]
[1768929498239,0.16587,3017.3,3016.2,3.44688691]
[1768929503850,1.86062397,3017.8,3016.2,3.44688691]
[1768929504053,1.24426843,3017.7,3016.2,3.44688691]
[1768929504248,1.24426843,3017.6,3016.2,3.44688691]
[1768929504450,0.16587,3017.3,3016.2,3.44688691]
[1768929510145,1.86062397,3017.8,3016.2,3.44688691]
[1768929510346,1.24519903,3017.7,3016.2,3.44688691]
[1768929510546,0.30300374,3017.6,3016.2,3.44688691]
[1768929510850,1.15524203,3017.5,3016.5,2.83120944]
[1768929511254,0.16585,3017.6,3016.5,2.83120944]
[1768929511545,0.16585,3017.6,3016.6,1.15524203]
[1768929512050,0.00362397,3017.8,3017.3,2.83120944]
[1768929512252,1.32103203,3018.6,3017.5,2.83120944]
[1768929512453,1.24575045,3018.5,3017.5,2.83120944]
[1768929512653,1.24575045,3018.4,3017.5,2.83120944]
[1768929512852,0.05768442,3019.0,3017.5,2.83120944]
[1768929513050,1.15524203,3019.5,3018.5,2.83120944]
[1768929513352,0.16576,3019.2,3018.5,2.83120944]
[1768929515647,0.16577,3019.0,3017.7,0.00497125]
[1768929517648,0.16577,3019.0,3017.8,2.83120944]
[1768929518152,0.16578,3018.9,3017.8,2.83120944]
[1768929519655,0.16578,3018.8,3017.8,2.83120944]